lending/lending_fUSD_20240504
["ID","MTS","AMOUNT","RATE_DAILY","PERIOD"]
[325409840,1714854667841,-500.0,0.00041095,30]
[325409841,1714854667851,-539.90620928,0.00041095,30]
[325409842,1714854667863,-500.0,0.00041095,30]
[325409843,1714854667872,-1182.34,0.00041095,30]
[325409844,1714854667882,-598.26,0.00041095,30]
[325409845,1714854667891,-500.0,0.00041095,30]
[325409846,1714854667900,-500.0,0.00041095,30]
[325409847,1714854667910,-694.6,0.00041095,30]
[325409848,1714854667919,-500.0,0.00041095,30]
[325409849,1714854667929,-188.496108,0.00041095,14]
[325409850,1714854667938,-188.496108,0.00041095,14]
[325409851,1714854667947,-500.0,0.00041095,30]
[325409852,1714854667956,-500.0,0.00041095,30]
[325409853,1714854667966,-579.25133268,0.00041095,30]
[325409854,1714854667975,-667.53,0.00041095,30]
[325409855,1714854667984,-848.51,0.00041095,30]
[325409856,1714854667993,-500.0,0.00041095,30]
[325409857,1714854668003,-505.00188462,0.00041095,30]
[325409858,1714854668012,-500.0,0.00041095,30]
[325409859,1714854668022,-1400.06,0.00041095,30]
[325409860,1714854668031,-1269.67,0.00041095,30]
[325409861,1714854668040,-2770.31,0.00041095,30]
[325409862,1714854668049,-965.83,0.00041095,30]
[325409863,1714854668059,-211.0972133,0.00041095,30]
[325409864,1714854668069,-502.77255806,0.00041095,30]
[325409865,1714854668079,-500.0,0.00041095,30]
[325409866,1714854668088,-500.0,0.00041095,30]
[325409867,1714854668098,-198.92331693,0.00041095,30]
[325409868,1714854668109,-500.0,0.00041095,30]
[325409869,1714854668119,-500.0,0.00041095,30]
[325409870,1714854668129,-500.0,0.00041095,30]
[325409871,1714854668139,-500.0,0.00041095,30]
[325409872,1714854668148,-500.0,0.00041095,30]
[325409873,1714854668158,-500.0,0.00041095,30]
[325409874,1714854668167,-500.0,0.00041095,30]
[325409875,1714854668177,-500.0,0.00041095,30]
[325409876,1714854668187,-500.0,0.00041095,30]
[325409877,1714854668197,-500.0,0.00041095,30]
[325409878,1714854668206,-500.0,0.00041095,30]
[325409879,1714854668216,-500.0,0.00041095,30]
[325409880,1714854668226,-582.99,0.00041095,30]
[325409881,1714854668236,-1675.6,0.00041095,30]
[325409882,1714854668246,-554.08,0.00041095,30]
[325409883,1714854668256,-500.0,0.00041095,30]
[325409884,1714854668265,-612.9,0.00041095,30]
[325409885,1714854668275,-511.08,0.00041095,30]
[325409886,1714854668284,-1332.79,0.00041095,30]
[325409887,1714854668294,-756.96,0.00041095,30]
[325409888,1714854668304,-502.21052253,0.00041095,30]
[325409889,1714854668314,-500.0,0.00041095,30]
[325409890,1714854668323,-943.07,0.00041095,30]
[325409891,1714854668333,-500.0,0.00041095,30]
[325409892,1714854668343,-500.0,0.00041095,30]
[325409893,1714854668352,-500.79303441,0.00041095,30]
[325409894,1714854668364,-500.0,0.00041095,30]
[325409895,1714854668374,-500.0,0.00041095,30]
[325409896,1714854668384,-1080.17,0.00041095,30]
[325409897,1714854668394,-500.0,0.00041095,30]
[325409898,1714854668404,-500.0,0.00041095,30]
[325409899,1714854668413,-530.55,0.00041095,30]
[325409900,1714854668425,-528.76,0.00041095,30]
[325409901,1714854668436,-500.0,0.00041095,30]
[325409902,1714854668451,-500.0,0.00041095,30]
[325409903,1714854668462,-500.0,0.00041095,30]
[325409904,1714854668473,-575.89,0.00041095,30]
[325409905,1714854668483,-1421.51,0.00041095,30]
[325409906,1714854668492,-500.0,0.00041095,30]
[325409907,1714854668502,-500.0,0.00041095,30]
[325409908,1714854668513,-500.0,0.00041095,30]
[325409909,1714854668524,-1334.34,0.00041095,30]
[325409910,1714854668534,-500.0,0.00041095,30]
[325409911,1714854668544,-521.24,0.00041095,30]
[325409912,1714854668554,-501.84273534,0.00041095,30]
[325409913,1714854668564,-500.0,0.00041095,30]
[325409914,1714854668574,-539.99,0.00041095,30]
[325409915,1714854668583,-500.0,0.00041095,30]
[325409916,1714854668593,-1076.74,0.00041095,30]
[325409917,1714854668603,-500.0,0.00041095,30]
[325409918,1714854668616,-1655.5,0.00041095,30]
[325409919,1714854668625,-500.0,0.00041095,30]
[325409920,1714854668635,-500.0,0.00041095,30]
[325409921,1714854668645,-500.0,0.00041095,30]
[325409922,1714854668654,-1210.84,0.00041095,30]
[325409923,1714854668664,-500.0,0.00041095,30]
[325409924,1714854668673,-1424.83,0.00041095,30]
[325409925,1714854668683,-500.0,0.00041095,30]
[325409926,1714854668692,-166.965362,0.00041095,14]
[325409927,1714854668702,-166.965362,0.00041095,14]
[325409928,1714854668712,-1377.08,0.00041095,30]
[325409929,1714854668721,-500.0,0.00041095,30]
[325409930,1714854668731,-750.73,0.00041095,30]
[325409931,1714854668740,-500.0,0.00041095,30]
[325409932,1714854668750,-500.0,0.00041095,30]
[325409933,1714854668759,-500.0,0.00041095,30]
[325409934,1714854668769,-500.0,0.00041095,30]
[325409935,1714854668778,-500.0,0.00041095,30]
[325409936,1714854668787,-166.965362,0.00041095,14]
[325409937,1714854668797,-500.0,0.00041095,30]
[325409938,1714854668806,-783.71,0.00041095,30]
[325409939,1714854668816,-166.965362,0.00041095,14]
[325409940,1714854668825,-500.0,0.00041095,30]
[325409941,1714854668835,-634.97,0.00041095,30]
[325409942,1714854668845,-1011.49,0.00041095,30]
[325409943,1714854668854,-500.0,0.00041095,30]
[325409944,1714854668864,-500.0,0.00041095,30]
[325409945,1714854668873,-716.55,0.00041095,30]
[325409946,1714854668882,-682.52,0.00041095,30]
[325409947,1714854668892,-757.93,0.00041095,30]
[325409948,1714854668901,-751.19,0.00041095,30]
[325409949,1714854668911,-500.0,0.00041095,30]
[325409950,1714854668920,-500.0,0.00041095,30]
[325409951,1714854668930,-507.08141493,0.00041095,30]
[325409952,1714854668939,-1313.78,0.00041095,30]
[325409953,1714854668949,-500.0,0.00041095,30]
[325409954,1714854668959,-151.0,0.00041095,14]
[325409955,1714854668968,-151.0,0.00041095,14]
[325409956,1714854668978,-5819.53,0.00041095,30]
[325409957,1714854668987,-500.0,0.00041095,30]
[325409958,1714854668997,-2405.65,0.00041095,30]
[325409959,1714854669007,-1780.52,0.00041095,30]
[325409960,1714854669016,-500.0,0.00041095,30]
[325409961,1714854669025,-500.0,0.00041095,30]
[325409962,1714854669035,-500.74054419,0.00041095,30]
[325409963,1714854669044,-151.0,0.00041095,14]
[325409964,1714854669053,-500.0,0.00041095,30]
[325409965,1714854669063,-151.0,0.00041095,14]
[325409966,1714854669072,-500.0,0.00041095,30]
[325409967,1714854669081,-500.0,0.00041095,30]
[325409968,1714854669091,-500.0,0.00041095,30]
[325409969,1714854669100,-1457.39,0.00041095,30]
[325409970,1714854669111,-942.46,0.00041095,30]
[325409971,1714854669121,-500.0,0.00041095,30]
[325409972,1714854669130,-500.0,0.00041095,30]
[325409973,1714854669139,-500.0,0.00041095,30]
[325409974,1714854669149,-698.72,0.00041095,30]
[325409975,1714854669158,-698.72,0.00041095,31]
[325409976,1714854669167,-698.72,0.00041095,32]
[325409977,1714854669177,-698.72,0.00041095,33]
[325409978,1714854669186,-593.61,0.00041095,30]
[325409979,1714854669195,-698.72,0.00041095,34]
[325409980,1714854669205,-151.0,0.00041095,14]
[325409981,1714854669214,-698.72,0.00041095,35]
[325409982,1714854669224,-151.0,0.00041095,14]
[325409983,1714854669233,-698.72,0.00041095,36]
[325409984,1714854669242,-698.72,0.00041095,37]
[325409985,1714854669251,-151.0,0.00041095,14]
[325409986,1714854669261,-698.72,0.00041095,38]
[325409987,1714854669270,-500.0,0.00041095,30]
[325409988,1714854669279,-1251.92,0.00041095,30]
[325409989,1714854669289,-583.88,0.00041095,30]
[325409990,1714854669298,-151.0,0.00041095,14]
[325409991,1714854669307,-500.0,0.00041095,30]
[325409992,1714854669317,-698.72,0.00041095,39]
[325409993,1714854669326,-500.0,0.00041095,30]
[325409994,1714854669335,-698.72,0.00041095,40]
[325409995,1714854669344,-698.72,0.00041095,41]
[325409996,1714854669353,-698.72,0.00041095,42]
[325409997,1714854669364,-500.0,0.00041095,30]
[325409998,1714854669373,-698.72,0.00041095,43]
[325409999,1714854669383,-1326.3,0.00041095,30]
[325410000,1714854669392,-500.0,0.00041095,30]
[325410001,1714854669401,-698.72,0.00041095,44]
[325410002,1714854669410,-698.72,0.00041095,45]
[325410003,1714854669420,-698.72,0.00041095,46]
[325410004,1714854669432,-698.72,0.00041095,47]
[325410005,1714854669442,-1353.61,0.00041095,30]
[325410006,1714854669451,-500.0,0.00041095,30]
[325410007,1714854669461,-5331.4,0.00041095,30]
[325410008,1714854669472,-698.72,0.00041095,48]
[325410009,1714854669482,-1171.31,0.00041095,30]
[325410010,1714854669491,-698.72,0.00041095,49]
[325410011,1714854669500,-698.72,0.00041095,49]
[325410012,1714854669511,-500.0,0.00041095,30]
[325410013,1714854669520,-698.72,0.00041095,49]
[325410014,1714854669529,-698.72,0.00041095,49]
[325410015,1714854669539,-698.95607604,0.00041095,49]
[325410016,1714854669548,-500.0,0.00041095,30]
[325410017,1714854669559,-550.51138771,0.00041095,30]
[325410018,1714854669570,-500.0,0.00041095,30]
[325410019,1714854669579,-504.90061635,0.00041095,30]
[325410020,1714854669589,-1399.68,0.00041095,30]
[325410021,1714854669600,-1319.84,0.00041095,30]
[325410022,1714854669611,-1778.94,0.00041095,30]
[325410023,1714854669620,-500.0,0.00041095,30]
[325410024,1714854669630,-739.55,0.00041095,30]
[325410025,1714854669640,-151.0,0.00041095,14]
[325410026,1714854669650,-5065.42,0.00041095,30]
[325410027,1714854669660,-151.0,0.00041095,14]
[325410028,1714854669670,-500.0,0.00041095,30]
[325410029,1714854669679,-500.0,0.00041095,30]
[325410030,1714854669688,-824.22,0.00041095,30]
[325410031,1714854669698,-3399.38,0.00041095,30]
[325410032,1714854669708,-151.0,0.00041095,14]
[325410033,1714854669718,-151.0,0.00041095,14]
[325410034,1714854669728,-500.0,0.00041095,30]
[325410035,1714854669737,-500.0,0.00041095,30]
[325410036,1714854669746,-500.0,0.00041095,30]
[325410037,1714854669756,-1174.95,0.00041095,30]
[325410038,1714854669766,-500.0,0.00041095,30]
[325410039,1714854669775,-2551.67,0.00041095,30]
[325410040,1714854669785,-501.56753732,0.00041095,30]
[325410041,1714854669795,-500.0,0.00041095,30]
[325410042,1714854669805,-500.0,0.00041095,30]
[325410043,1714854669908,-1399.92,0.00041095,30]
[325410044,1714854669919,-151.0,0.00041095,14]
[325410045,1714854669928,-16396.5,0.00041095,30]
[325410046,1714854669938,-151.0,0.00041095,14]
[325410047,1714854669947,-500.0,0.00041095,30]
[325410048,1714854669956,-757.34,0.00041095,30]
[325410049,1714854669966,-1329.86,0.00041095,30]
[325410050,1714854669975,-500.0,0.00041095,30]
[325410051,1714854669984,-1175.69,0.00041095,30]
[325410052,1714854669994,-500.72922517,0.00041095,30]
[325410053,1714854670003,-2338.44,0.00041095,30]
[325410054,1714854670013,-500.0,0.00041095,30]
[325410055,1714854670022,-500.0,0.00041095,30]
[325410056,1714854670033,-1330.72,0.00041095,30]
[325410057,1714854670042,-500.0,0.00041095,30]
[325410058,1714854670052,-1344.33,0.00041095,30]
[325410059,1714854670062,-151.0,0.00041095,14]
[325410060,1714854670072,-500.0,0.00041095,30]
[325410061,1714854670082,-151.0,0.00041095,14]
[325410062,1714854670091,-3385.2,0.00041095,30]
[325410063,1714854670100,-500.0,0.00041095,30]
[325410064,1714854670110,-500.0,0.00041095,30]
[325410065,1714854670119,-500.0,0.00041095,30]
[325410066,1714854670129,-878.35,0.00041095,30]
[325410067,1714854670138,-500.0,0.00041095,30]
[325410068,1714854670147,-501.89109819,0.00041095,30]
[325410069,1714854670156,-1206.1,0.00041095,30]
[325410070,1714854670165,-2878.8,0.00041095,30]
[325410071,1714854670175,-846.83,0.00041095,30]
[325410072,1714854670184,-2579.42,0.00041095,30]
[325410073,1714854670193,-509.02093117,0.00041095,30]
[325410074,1714854670202,-500.0,0.00041095,30]
[325410075,1714854670211,-500.0,0.00041095,30]
[325410076,1714854670220,-750.0,0.00041095,30]
[325410077,1714854670230,-500.0,0.00041095,30]
[325410078,1714854670239,-500.0,0.00041095,30]
[325410079,1714854670249,-500.0,0.00041095,30]
[325410080,1714854670258,-1055.24,0.00041095,30]
[325410081,1714854670268,-2822.68,0.00041095,30]
[325410082,1714854670277,-1544.08,0.00041095,30]
[325410083,1714854670287,-590.76,0.00041095,30]
[325410084,1714854670297,-2432.0,0.00041095,30]
[325410085,1714854670306,-169.473582,0.00041095,14]
[325410086,1714854670316,-1285.14,0.00041095,30]
[325410087,1714854670325,-500.0,0.00041095,30]
[325410088,1714854670334,-500.0,0.00041095,30]
[325410089,1714854670343,-500.0,0.00041095,30]
[325410090,1714854670353,-500.0,0.00041095,30]
[325410091,1714854670363,-500.0,0.00041095,30]
[325410092,1714854670372,-500.0,0.00041095,30]
[325410093,1714854670381,-500.0,0.00041095,30]
[325410094,1714854670391,-500.0,0.00041095,30]
[325410095,1714854670400,-166.012306,0.00041095,14]
[325410096,1714854670410,-769.86,0.00041095,30]
[325410097,1714854670419,-166.012306,0.00041095,14]
[325410098,1714854670433,-500.0,0.00041095,30]
[325410099,1714854670446,-2519.53,0.00041095,30]
[325410100,1714854670455,-500.0,0.00041095,30]
[325410101,1714854670464,-1687.65,0.00041095,30]
[325410102,1714854670475,-500.0,0.00041095,30]
[325410103,1714854670484,-37730.13,0.00041095,30]
[325410104,1714854670493,-954.49,0.00041095,30]
[325410105,1714854670502,-500.0,0.00041095,30]
[325410106,1714854670512,-500.0,0.00041095,30]
[325410107,1714854670523,-500.0,0.00041095,30]
[325410108,1714854670534,-1274.32,0.00041095,30]
[325410109,1714854670543,-166.012306,0.00041095,14]
[325410110,1714854670553,-166.012306,0.00041095,14]
[325410111,1714854670564,-6475.15,0.00041095,30]
[325410112,1714854670574,-506.30464589,0.00041095,30]
[325410113,1714854670584,-1228.46,0.00041095,30]
[325410114,1714854670595,-500.0,0.00041095,30]
[325410115,1714854670605,-688.05,0.00041095,30]
[325410116,1714854670616,-688.05,0.00041095,31]
[325410117,1714854670625,-500.0,0.00041095,30]
[325410118,1714854670634,-688.05,0.00041095,32]
[325410119,1714854670643,-688.05,0.00041095,33]
[325410120,1714854670653,-2493.8,0.00041095,30]
[325410121,1714854670664,-688.05,0.00041095,34]
[325410122,1714854670674,-688.05,0.00041095,35]
[325410123,1714854670683,-688.05,0.00041095,36]
[325410124,1714854670692,-841.02,0.00041095,30]
[325410125,1714854670702,-688.05,0.00041095,37]
[325410126,1714854670713,-500.0,0.00041095,30]
[325410127,1714854670723,-688.05,0.00041095,38]
[325410128,1714854670732,-500.0,0.00041095,30]
[325410129,1714854670741,-500.0,0.00041095,30]
[325410130,1714854670751,-688.05,0.00041095,39]
[325410131,1714854670760,-3771.83,0.00041095,30]
[325410132,1714854670769,-500.0,0.00041095,30]
[325410133,1714854670779,-688.05,0.00041095,40]
[325410134,1714854670788,-151.0,0.00041095,14]
[325410135,1714854670797,-688.05,0.00041095,41]
[325410136,1714854670807,-1241.94,0.00041095,30]
[325410137,1714854670816,-151.0,0.00041095,14]
[325410138,1714854670825,-688.05,0.00041095,42]
[325410139,1714854670835,-501.42956258,0.00041095,30]
[325410140,1714854670845,-688.05,0.00041095,43]
[325410141,1714854670855,-688.05,0.00041095,44]
[325410142,1714854670867,-688.05,0.00041095,45]
[325410143,1714854670877,-688.05,0.00041095,46]
[325410144,1714854670887,-4135.79,0.00041095,30]
[325410145,1714854670896,-500.0,0.00041095,30]
[325410146,1714854670906,-688.05,0.00041095,47]
[325410147,1714854670915,-688.05,0.00041095,48]
[325410148,1714854670924,-688.05,0.00041095,49]
[325410149,1714854670934,-688.05,0.00041095,49]
[325410150,1714854670943,-502.5029687,0.00041095,30]
[325410151,1714854670952,-500.0,0.00041095,30]
[325410152,1714854670962,-688.05,0.00041095,49]
[325410153,1714854670971,-500.0,0.00041095,30]
[325410154,1714854670980,-500.0,0.00041095,30]
[325410155,1714854670990,-688.05,0.00041095,49]
[325410156,1714854670998,-688.13,0.00041095,49]
[325410157,1714854671008,-656.62,0.00041095,30]
[325410158,1714854671017,-1271.69,0.00041095,30]
[325410159,1714854671026,-1328.52,0.00041095,30]
[325410160,1714854671035,-500.92417515,0.00041095,30]
[325410161,1714854671045,-500.0,0.00041095,30]
[325410162,1714854671055,-500.0,0.00041095,30]
[325410163,1714854671064,-6153.62,0.00041095,30]
[325410164,1714854671073,-862.42,0.00041095,30]
[325410165,1714854671083,-570.95,0.00041095,30]
[325410166,1714854671092,-8848.42,0.00041095,30]
[325410167,1714854671101,-1507.99,0.00041095,30]
[325410168,1714854671111,-500.0,0.00041095,30]
[325410169,1714854671121,-4960.51,0.00041095,30]
[325410170,1714854671130,-3091.95,0.00041095,30]
[325410171,1714854671140,-500.0,0.00041095,30]
[325410172,1714854671149,-500.0,0.00041095,30]
[325410173,1714854671158,-587.22,0.00041095,30]
[325410174,1714854671168,-500.0,0.00041095,30]
[325410175,1714854671177,-685.82,0.00041095,30]
[325410176,1714854671187,-500.0,0.00041095,30]
[325410177,1714854671196,-501.266952,0.00041095,30]
[325410178,1714854671205,-151.0,0.00041095,14]
[325410179,1714854671214,-500.0,0.00041095,30]
[325410180,1714854671224,-217.380008,0.00041095,14]
[325410181,1714854671233,-349.911696,0.00041095,14]
[325410182,1714854671243,-500.0,0.00041095,30]
[325410183,1714854671252,-349.911696,0.00041095,14]
[325410184,1714854671261,-1056.31,0.00041095,30]
[325410185,1714854671270,-196.74611485,0.00041095,30]
[325410186,1714854671279,-500.0,0.00041095,30]
[325410187,1714854671288,-795.12,0.00041095,30]
[325410188,1714854671298,-1000.67,0.00041095,30]
[325410189,1714854671307,-500.0,0.00041095,30]
[325410190,1714854671316,-500.0,0.00041095,30]
[325410191,1714854671325,-500.0,0.00041095,30]
[325410192,1714854671335,-500.0,0.00041095,30]
[325410193,1714854671344,-19712.86,0.00041095,30]
[325410194,1714854671361,-349.911696,0.00041095,14]
[325410195,1714854671370,-349.911696,0.00041095,14]
[325410196,1714854671379,-151.0,0.00041095,14]
[325410197,1714854671388,-500.0,0.00041095,30]
[325410198,1714854671397,-151.0,0.00041095,14]
[325410199,1714854671405,-500.0,0.00041095,30]
[325410200,1714854671414,-424.33534362,0.00041095,30]
[325410201,1714854671424,-500.0,0.00041095,31]
[325410202,1714854671437,-500.0,0.00041095,32]
[325410203,1714854671446,-500.0,0.00041095,30]
[325410204,1714854671455,-500.0,0.00041095,33]
[325410205,1714854671464,-516.11892539,0.00041095,30]
[325410206,1714854671475,-500.0,0.00041095,34]
[325410207,1714854671484,-500.0,0.00041095,35]
[325410208,1714854671493,-500.0,0.00041095,36]
[325410209,1714854671502,-1191.11,0.00041095,30]
[325410210,1714854671511,-500.0,0.00041095,37]
[325410211,1714854671521,-500.0,0.00041095,38]
[325410212,1714854671531,-500.0,0.00041095,39]
[325410213,1714854671540,-500.0,0.00041095,40]
[325410214,1714854671550,-540.0,0.00041095,30]
[325410215,1714854671559,-627.27,0.00041095,30]
[325410216,1714854671567,-151.0,0.00041095,14]
[325410217,1714854671577,-500.0,0.00041095,41]
[325410218,1714854671586,-1243.46,0.00041095,30]
[325410219,1714854671595,-500.0,0.00041095,42]
[325410220,1714854671604,-844.82,0.00041095,30]
[325410221,1714854671614,-500.0,0.00041095,43]
[325410222,1714854671623,-500.0,0.00041095,44]
[325410223,1714854671633,-500.0,0.00041095,45]
[325410224,1714854671642,-500.0,0.00041095,46]
[325410225,1714854671651,-500.0,0.00041095,30]
[325410226,1714854671660,-500.0,0.00041095,47]
[325410227,1714854671669,-538.2641224,0.00041095,48]
[325410228,1714854671678,-1029.19,0.00041095,30]
[325410229,1714854671687,-500.0,0.00041095,30]
[325410230,1714854671696,-500.0,0.00041095,30]
[325410231,1714854671706,-12077.51,0.00041095,30]
[325410232,1714854671714,-1299.31,0.00041095,30]
[325410233,1714854671724,-299.587713,0.00041095,14]
[325410234,1714854671733,-1714.76,0.00041095,30]
[325410235,1714854671742,-390.14904427,0.00041095,30]
[325410236,1714854671751,-299.587713,0.00041095,14]
[325410237,1714854671760,-2657.57,0.00041095,30]
[325410238,1714854671770,-500.0,0.00041095,30]
[325410239,1714854671779,-3728.92,0.00041095,30]
[325410240,1714854671788,-500.0,0.00041095,30]
[325410241,1714854671797,-151.0,0.00041095,14]
[325410242,1714854671812,-500.0,0.00041095,30]
[325410243,1714854671821,-294.735241,0.00041095,14]
[325410244,1714854671830,-294.735241,0.00041095,14]
[325410245,1714854671839,-500.0,0.00041095,30]
[325410246,1714854671848,-299.587713,0.00041095,14]
[325410247,1714854671857,-299.587713,0.00041095,14]
[325410248,1714854671868,-500.0,0.00041095,30]
[325410249,1714854671877,-500.0,0.00041095,30]
[325410250,1714854671886,-2032.19,0.00041095,30]
[325410251,1714854671895,-1096.87,0.00041095,30]
[325410252,1714854671904,-2279.45,0.00041095,30]
[325410253,1714854671913,-500.0,0.00041095,30]
[325410254,1714854671922,-294.735241,0.00041095,14]
[325410255,1714854671931,-294.735241,0.00041095,14]
[325410256,1714854671940,-500.0,0.00041095,30]
[325410257,1714854671949,-5875.24,0.00041095,30]
[325410258,1714854671958,-500.0,0.00041095,30]
[325410259,1714854671967,-500.0,0.00041095,30]
[325410260,1714854671976,-500.0,0.00041095,30]
[325410261,1714854671985,-500.0,0.00041095,30]
[325410262,1714854671994,-3252.04,0.00041095,30]
[325410263,1714854672002,-500.0,0.00041095,30]
[325410264,1714854672012,-500.0,0.00041095,30]
[325410265,1714854672025,-500.0,0.00041095,30]
[325410266,1714854672035,-500.0,0.00041095,30]
[325410267,1714854672044,-151.0,0.00041095,14]
[325410268,1714854672053,-151.0,0.00041095,14]
[325410269,1714854672062,-3902.05,0.00041095,30]
[325410270,1714854672072,-1187.23,0.00041095,30]
[325410271,1714854672082,-2287.39,0.00041095,30]
[325410272,1714854672091,-500.0,0.00041095,30]
[325410273,1714854672100,-576.16,0.00041095,30]
[325410274,1714854672109,-2563.52,0.00041095,30]
[325410275,1714854672119,-500.0,0.00041095,30]
[325410276,1714854672128,-500.0,0.00041095,30]
[325410277,1714854672137,-1381.09,0.00041095,30]
[325410278,1714854672147,-635.76,0.00041095,30]
[325410279,1714854672156,-947.55,0.00041095,30]
[325410280,1714854672165,-1331.55,0.00041095,30]
[325410281,1714854672175,-17373.18,0.00041095,30]
[325410282,1714854672184,-221.958369,0.00041095,14]
[325410283,1714854672193,-500.0,0.00041095,30]
[325410284,1714854672202,-707.05,0.00041095,30]
[325410285,1714854672211,-164.57122995,0.00041095,30]
[325410286,1714854672222,-500.0,0.00041095,30]
[325410287,1714854672236,-2650.11,0.00041095,30]
[325410288,1714854672245,-1432.21,0.00041095,30]
[325410289,1714854672255,-500.0,0.00041095,2]
[325410290,1714854672264,-500.0,0.00041095,30]
[325410291,1714854672274,-500.0,0.00041095,2]
[325410292,1714854672283,-5802.57,0.00041095,30]
[325410293,1714854672293,-500.0,0.00041095,2]
[325410294,1714854672302,-500.0,0.00041095,30]
[325410295,1714854672311,-500.0,0.00041095,30]
[325410296,1714854672321,-500.0,0.00041095,30]
[325410297,1714854672330,-500.0,0.00041095,2]
[325410298,1714854672340,-500.0,0.00041095,2]
[325410299,1714854672350,-9088.62,0.00041095,30]
[325410300,1714854672359,-500.0,0.00041095,2]
[325410301,1714854672369,-6077.22,0.00041095,30]
[325410302,1714854672378,-500.0,0.00041095,2]
[325410303,1714854672387,-500.0,0.00041095,2]
[325410304,1714854672397,-500.0,0.00041095,2]
[325410305,1714854672406,-1465.93,0.00041095,30]
[325410306,1714854672416,-500.0,0.00041095,2]
[325410307,1714854672427,-500.0,0.00041095,30]
[325410308,1714854672437,-508.61513791,0.00041095,2]
[325410309,1714854672448,-500.0,0.00041095,30]
[325410310,1714854672458,-500.9442995,0.00041095,30]
[325410311,1714854672467,-836.1,0.00041095,30]
[325410312,1714854672477,-614.06466477,0.00041095,30]
[325410313,1714854672487,-1030.1,0.00041095,30]
[325410314,1714854672496,-1785.26,0.00041095,30]
[325410315,1714854672506,-241.89094186,0.00041095,30]
[325410316,1714854672517,-1340.15,0.00041095,30]
[325410317,1714854672526,-1073.99,0.00041095,30]
[325410318,1714854672535,-500.0,0.00041095,30]
[325410319,1714854672545,-500.0,0.00041095,30]
[325410320,1714854672554,-1310.59,0.00041095,30]
[325410321,1714854672563,-500.0,0.00041095,30]
[325410322,1714854672572,-1503.66,0.00041095,30]
[325410323,1714854672581,-151.0,0.00041095,14]
[325410324,1714854672591,-2904.29,0.00041095,30]
[325410325,1714854672599,-151.0,0.00041095,14]
[325410326,1714854672610,-399.64062165,0.00041095,30]
[325410327,1714854672620,-500.0,0.00041095,30]
[325410328,1714854672629,-3054.33,0.00041095,30]
[325410329,1714854672639,-159.73456,0.00041095,14]
[325410330,1714854672649,-509.97168556,0.00041095,30]
[325410331,1714854672659,-500.0,0.00041095,30]
[325410332,1714854672669,-1071.5,0.00041095,30]
[325410333,1714854672679,-500.0,0.00041095,30]
[325410334,1714854672689,-24395.07,0.00041095,30]
[325410335,1714854672699,-500.0,0.00041095,30]
[325410336,1714854672709,-1283.04,0.00041095,30]
[325410337,1714854672720,-736.12,0.00041095,30]
[325410338,1714854672729,-500.0,0.00041095,30]
[325410339,1714854672739,-500.0,0.00041095,30]